[Event "*** Titled Tuesday Blitz AM"]
[Site "Chess.com"]
[Date "2020.01.07"]
[Round "5"]
[White "FearlessKing64"]
[Black "Colombiano07"]
[Result "0-1"]
[WhiteElo "2340"]
[BlackElo "2173"]
[TimeControl "180+2"]
[EndTime "10:00:34 PST"]
[Termination "Colombiano07 won by resignation"]

1. e4 {[%clk 0:03:01.8]} 1... c5 {[%clk 0:03:00.6]} 2. Nf3 {[%clk 0:03:03]} 2...
Nc6 {[%clk 0:03:01.9]} 3. d4 {[%clk 0:03:04.4]} 3... cxd4 {[%clk 0:03:03.8]} 4.
Nxd4 {[%clk 0:03:06]} 4... Nf6 {[%clk 0:03:05.4]} 5. Nc3 {[%clk 0:03:07.5]} 5...
g6 {[%clk 0:03:07]} 6. Be3 {[%clk 0:02:57.7]} 6... Bg7 {[%clk 0:03:07.8]} 7. f3
{[%clk 0:02:59.3]} 7... O-O {[%clk 0:03:09]} 8. Qd2 {[%clk 0:03:01]} 8... d5
{[%clk 0:03:09.7]} 9. exd5 {[%clk 0:02:56]} 9... Nxd5 {[%clk 0:03:11.6]} 10.
Nxd5 {[%clk 0:02:56.6]} 10... Qxd5 {[%clk 0:03:13.5]} 11. Nxc6 {[%clk
0:02:55.1]} 11... bxc6 {[%clk 0:03:15.1]} 12. c3 {[%clk 0:02:50.7]} 12... Rb8
{[%clk 0:03:13]} 13. Be2 {[%clk 0:02:28.4]} 13... Qxd2+ {[%clk 0:03:12.2]} 14.
Bxd2 {[%clk 0:02:27.4]} 14... Rxb2 {[%clk 0:03:14.1]} 15. Be3 {[%clk 0:02:23.3]}
15... Be6 {[%clk 0:03:13.1]} 16. Bxa7 {[%clk 0:02:16.6]} 16... Bxc3+ {[%clk
0:03:11.2]} 17. Kf1 {[%clk 0:02:17.9]} 17... Ra8 {[%clk 0:03:07.5]} 18. Be3
{[%clk 0:02:16.6]} 18... Raxa2 {[%clk 0:03:08.4]} 19. Rxa2 {[%clk 0:02:17.8]}
19... Rxa2 {[%clk 0:03:10.3]} 20. Kf2 {[%clk 0:02:19.3]} 20... Bc4 {[%clk
0:03:10.9]} 0-1

[Event "*** Titled Tuesday Blitz AM"]
[Site "Chess.com"]
[Date "2020.01.07"]
[Round "5"]
[White "elm2007"]
[Black "bhavesh1810"]
[Result "1-0"]
[WhiteElo "2747"]
[BlackElo "2019"]
[TimeControl "180+2"]
[EndTime "10:01:01 PST"]
[Termination "elm2007 won by resignation"]

1. e4 {[%clk 0:03:01.9]} 1... c5 {[%clk 0:03:00.5]} 2. Nf3 {[%clk 0:02:57.1]}
2... d6 {[%clk 0:03:01.7]} 3. d4 {[%clk 0:02:54.9]} 3... cxd4 {[%clk 0:03:03.6]}
4. Nxd4 {[%clk 0:02:56.7]} 4... Nf6 {[%clk 0:03:04.9]} 5. Nc3 {[%clk 0:02:57.9]}
5... a6 {[%clk 0:03:05.6]} 6. Bg5 {[%clk 0:02:57.4]} 6... h6 {[%clk 0:03:06.7]}
7. Bxf6 {[%clk 0:02:58.1]} 7... gxf6 {[%clk 0:03:08.6]} 8. Qf3 {[%clk
0:02:59.6]} 8... h5 {[%clk 0:03:09.3]} 9. h3 {[%clk 0:02:58.8]} 9... Nd7 {[%clk
0:03:04.7]} 10. O-O-O {[%clk 0:02:59.1]} 10... Ne5 {[%clk 0:03:05]} 11. Qe2
{[%clk 0:02:57.1]} 11... h4 {[%clk 0:03:03.2]} 12. Kb1 {[%clk 0:02:44.1]} 12...
Bh6 {[%clk 0:03:03.5]} 13. Nf5 {[%clk 0:02:33.5]} 13... Bxf5 {[%clk 0:02:57.2]}
14. exf5 {[%clk 0:02:35.4]} 14... Qd7 {[%clk 0:02:58.5]} 15. Nd5 {[%clk
0:02:32.9]} 15... O-O-O {[%clk 0:02:54.3]} 16. Nb6+ {[%clk 0:02:33.5]} 16... Kb8
{[%clk 0:02:54.3]} 17. Nxd7+ {[%clk 0:02:35.4]} 17... Rxd7 {[%clk 0:02:56.2]}
18. Qe4 {[%clk 0:02:34.6]} 18... Bf8 {[%clk 0:02:54.2]} 19. f4 {[%clk
0:02:18.6]} 19... Nc6 {[%clk 0:02:55.2]} 20. Bxa6 {[%clk 0:02:19.3]} 20... Kc7
{[%clk 0:02:56.2]} 21. Bb5 {[%clk 0:02:18.1]} 21... Rg8 {[%clk 0:02:57.4]} 22.
Rd3 {[%clk 0:02:18.5]} 22... Nb8 {[%clk 0:02:54.1]} 1-0

[Event "*** Titled Tuesday Blitz AM"]
[Site "Chess.com"]
[Date "2020.01.07"]
[Round "5"]
[White "Iyael"]
[Black "Redbandit87"]
[Result "0-1"]
[WhiteElo "2073"]
[BlackElo "2371"]
[TimeControl "180+2"]
[EndTime "10:02:08 PST"]
[Termination "Redbandit87 won by resignation"]

1. e4 {[%clk 0:03:01.9]} 1... e5 {[%clk 0:03:00.8]} 2. Nf3 {[%clk 0:03:02.1]}
2... Nc6 {[%clk 0:02:58.4]} 3. Bb5 {[%clk 0:03:03.5]} 3... Bc5 {[%clk 0:02:59]}
4. O-O {[%clk 0:03:03.2]} 4... Qf6 {[%clk 0:02:58.3]} 5. c3 {[%clk 0:03:02.7]}
5... Nge7 {[%clk 0:02:58.4]} 6. d3 {[%clk 0:02:56.9]} 6... h6 {[%clk 0:02:58.6]}
7. Be3 {[%clk 0:02:57.5]} 7... Bb6 {[%clk 0:02:59.3]} 8. Nbd2 {[%clk 0:02:55.9]}
8... O-O {[%clk 0:02:56.2]} 9. Qe2 {[%clk 0:02:50.8]} 9... d6 {[%clk 0:02:57.2]}
10. h3 {[%clk 0:02:49.2]} 10... Ng6 {[%clk 0:02:56.7]} 11. Rad1 {[%clk 0:02:46]}
11... Nf4 {[%clk 0:02:51.8]} 12. Bxf4 {[%clk 0:02:46.9]} 12... Qxf4 {[%clk
0:02:52.7]} 13. Nc4 {[%clk 0:02:47.5]} 13... Ne7 {[%clk 0:02:52.8]} 14. Nxb6
{[%clk 0:02:47.3]} 14... axb6 {[%clk 0:02:53.7]} 15. Qe3 {[%clk 0:02:43]} 15...
Qf6 {[%clk 0:02:51.7]} 16. d4 {[%clk 0:02:43.2]} 16... Ng6 {[%clk 0:02:48.9]}
17. Rfe1 {[%clk 0:02:44.1]} 17... c6 {[%clk 0:02:49.8]} 18. Bf1 {[%clk
0:02:44.4]} 18... Nf4 {[%clk 0:02:50.7]} 19. a3 {[%clk 0:02:43.9]} 19... b5
{[%clk 0:02:49.1]} 20. dxe5 {[%clk 0:02:44.2]} 20... dxe5 {[%clk 0:02:49.9]} 21.
Rd2 {[%clk 0:02:45.5]} 21... Be6 {[%clk 0:02:49.9]} 22. Red1 {[%clk 0:02:46.6]}
22... Qg6 {[%clk 0:02:46.6]} 23. Kh2 {[%clk 0:02:44.2]} 23... Qf6 {[%clk
0:02:41]} 24. Qc5 {[%clk 0:02:43.2]} 24... Ng6 {[%clk 0:02:38.3]} 25. Rd6 {[%clk
0:02:28.5]} 25... Rfd8 {[%clk 0:02:37.5]} 26. Rxd8+ {[%clk 0:02:27.6]} 26...
Rxd8 {[%clk 0:02:38.3]} 27. Rxd8+ {[%clk 0:02:28.7]} 27... Qxd8 {[%clk
0:02:40.2]} 28. Qe3 {[%clk 0:02:21.7]} 28... Qd1 {[%clk 0:02:38.6]} 29. Be2
{[%clk 0:02:20]} 29... Qc2 {[%clk 0:02:38.9]} 30. b4 {[%clk 0:02:15.6]} 30...
Qb2 {[%clk 0:02:31.9]} 31. Qd3 {[%clk 0:02:15.6]} 31... Qxa3 {[%clk 0:02:28.6]}
32. Qd8+ {[%clk 0:02:14.4]} 32... Kh7 {[%clk 0:02:29.5]} 33. Qd6 {[%clk
0:02:14.5]} 33... Qxc3 {[%clk 0:02:29.3]} 0-1

[Event "*** Titled Tuesday Blitz AM"]
[Site "Chess.com"]
[Date "2020.01.07"]
[Round "5"]
[White "Everyfishknows"]
[Black "HarryCun"]
[Result "0-1"]
[WhiteElo "2315"]
[BlackElo "2070"]
[TimeControl "180+2"]
[EndTime "10:02:23 PST"]
[Termination "HarryCun won by resignation"]

1. Nf3 {[%clk 0:03:01.9]} 1... Nf6 {[%clk 0:02:59]} 2. c4 {[%clk 0:03:02.8]}
2... e6 {[%clk 0:02:58.7]} 3. g3 {[%clk 0:03:03.2]} 3... b6 {[%clk 0:02:58.1]}
4. Bg2 {[%clk 0:03:03.7]} 4... Bb7 {[%clk 0:03:00]} 5. O-O {[%clk 0:03:05.1]}
5... Be7 {[%clk 0:03:01.3]} 6. b3 {[%clk 0:03:06.1]} 6... O-O {[%clk 0:03:02.7]}
7. Bb2 {[%clk 0:03:07.7]} 7... d6 {[%clk 0:03:03.9]} 8. Nc3 {[%clk 0:03:06.8]}
8... Nbd7 {[%clk 0:03:05.2]} 9. d4 {[%clk 0:03:07.5]} 9... c5 {[%clk 0:03:06.5]}
10. e3 {[%clk 0:03:08.7]} 10... Rc8 {[%clk 0:03:06.8]} 11. Qe2 {[%clk
0:03:09.7]} 11... Qc7 {[%clk 0:03:08.1]} 12. Rac1 {[%clk 0:03:10.2]} 12... Qb8
{[%clk 0:03:09.3]} 13. Rfd1 {[%clk 0:03:10.4]} 13... Qa8 {[%clk 0:03:10.6]} 14.
Ne1 {[%clk 0:03:01.9]} 14... Bxg2 {[%clk 0:03:08.4]} 15. Nxg2 {[%clk 0:03:03.8]}
15... Ne4 {[%clk 0:03:08.9]} 16. Nxe4 {[%clk 0:02:59.9]} 16... Qxe4 {[%clk
0:03:10.8]} 17. Qd3 {[%clk 0:03:01]} 17... Qxd3 {[%clk 0:03:09]} 18. Rxd3 {[%clk
0:03:01.7]} 18... Bf6 {[%clk 0:03:10.6]} 19. Rd2 {[%clk 0:02:57.3]} 19... Rfd8
{[%clk 0:03:10.1]} 20. dxc5 {[%clk 0:02:58]} 20... Nxc5 {[%clk 0:03:10.8]} 21.
Bxf6 {[%clk 0:02:58.4]} 21... gxf6 {[%clk 0:03:10]} 22. Rcd1 {[%clk 0:03:00.3]}
22... Ne4 {[%clk 0:03:09.5]} 23. Rd4 {[%clk 0:03:00.1]} 23... f5 {[%clk
0:02:51.3]} 24. Nf4 {[%clk 0:02:58.7]} 24... e5 {[%clk 0:02:51.1]} 25. Rxe4
{[%clk 0:02:56.9]} 25... fxe4 {[%clk 0:02:51]} 26. Nd5 {[%clk 0:02:58.8]} 26...
Kg7 {[%clk 0:02:49.5]} 27. Ne7 {[%clk 0:02:57.4]} 27... Rc7 {[%clk 0:02:48.8]}
28. Nf5+ {[%clk 0:02:58.1]} 28... Kg6 {[%clk 0:02:46.7]} 29. Rxd6+ {[%clk
0:03:00]} 29... Rxd6 {[%clk 0:02:47.1]} 30. Nxd6 {[%clk 0:03:01.9]} 30... f5
{[%clk 0:02:47.8]} 31. b4 {[%clk 0:02:59.4]} 31... Rd7 {[%clk 0:02:47.4]} 32. c5
{[%clk 0:02:52.8]} 32... bxc5 {[%clk 0:02:43.8]} 33. bxc5 {[%clk 0:02:54.7]}
33... a5 {[%clk 0:02:43]} 34. Nc4 {[%clk 0:02:53.2]} 34... Rc7 {[%clk 0:02:39]}
35. Nxe5+ {[%clk 0:02:50.2]} 35... Kf6 {[%clk 0:02:39.8]} 36. f4 {[%clk
0:02:47.3]} 36... exf3 {[%clk 0:02:37.7]} 37. Nxf3 {[%clk 0:02:48.5]} 37... Rxc5
{[%clk 0:02:39.2]} 38. Nd4 {[%clk 0:02:48]} 38... a4 {[%clk 0:02:33.4]} 39. Kg2
{[%clk 0:02:46.6]} 39... Rc3 {[%clk 0:02:32.1]} 40. Kf3 {[%clk 0:02:42.4]} 40...
Ra3 {[%clk 0:02:31.2]} 41. h4 {[%clk 0:02:41.8]} 41... Rxa2 {[%clk 0:02:32.1]}
42. g4 {[%clk 0:02:37.2]} 0-1

[Event "*** Titled Tuesday Blitz AM"]
[Site "Chess.com"]
[Date "2020.01.07"]
[Round "5"]
[White "Korona_91"]
[Black "ori99"]
[Result "0-1"]
[WhiteElo "2419"]
[BlackElo "2073"]
[TimeControl "180+2"]
[EndTime "10:02:42 PST"]
[Termination "ori99 won by resignation"]

1. e4 {[%clk 0:03:00.8]} 1... c5 {[%clk 0:02:59.4]} 2. Nf3 {[%clk 0:03:02]} 2...
e6 {[%clk 0:03:01.3]} 3. b3 {[%clk 0:03:02.6]} 3... d5 {[%clk 0:02:57.3]} 4.
exd5 {[%clk 0:03:02.7]} 4... exd5 {[%clk 0:02:59.2]} 5. Bb5+ {[%clk 0:03:04.2]}
5... Nc6 {[%clk 0:02:56.6]} 6. Qe2+ {[%clk 0:03:04.1]} 6... Be7 {[%clk
0:02:53.5]} 7. Bb2 {[%clk 0:03:04.1]} 7... Nf6 {[%clk 0:02:49.6]} 8. Bxf6 {[%clk
0:02:48.9]} 8... gxf6 {[%clk 0:02:49]} 9. Nc3 {[%clk 0:02:50.3]} 9... Be6 {[%clk
0:02:47.7]} 10. Bxc6+ {[%clk 0:02:43.1]} 10... bxc6 {[%clk 0:02:46.4]} 11. O-O-O
{[%clk 0:02:44.7]} 11... Qa5 {[%clk 0:02:44.8]} 12. Na4 {[%clk 0:02:45.1]} 12...
Rg8 {[%clk 0:02:41.5]} 13. g3 {[%clk 0:02:36.9]} 13... Rb8 {[%clk 0:02:38.1]}
14. Rhe1 {[%clk 0:02:37.1]} 14... Rg4 {[%clk 0:02:35.7]} 15. d4 {[%clk 0:02:32]}
15... c4 {[%clk 0:02:33.8]} 16. Qe3 {[%clk 0:02:22.3]} 16... Ba3+ {[%clk
0:02:30.5]} 17. Kb1 {[%clk 0:02:21.5]} 17... Qxa4 {[%clk 0:02:31]} 18. h3 {[%clk
0:02:14.7]} 18... Re4 {[%clk 0:02:29.2]} 19. Qc3 {[%clk 0:01:55.8]} 19... Rxe1
{[%clk 0:02:31.1]} 20. Nxe1 {[%clk 0:01:45.9]} 20... Bf5 {[%clk 0:02:25.9]} 21.
Qe3+ {[%clk 0:01:40.6]} 21... Kd7 {[%clk 0:02:26.3]} 22. Qf4 {[%clk 0:01:33.5]}
22... Rxb3+ {[%clk 0:02:26]} 23. Ka1 {[%clk 0:01:25.8]} 23... Bb2+ {[%clk
0:02:22.4]} 24. Kb1 {[%clk 0:01:25.3]} 24... Bc3+ {[%clk 0:02:22.6]} 0-1

[Event "*** Titled Tuesday Blitz AM"]
[Site "Chess.com"]
[Date "2020.01.07"]
[Round "5"]
[White "chess4ever007"]
[Black "Kirill_Kopenkin"]
[Result "1-0"]
[WhiteElo "2396"]
[BlackElo "2459"]
[TimeControl "180+2"]
[EndTime "10:02:48 PST"]
[Termination "chess4ever007 won by resignation"]

1. Nf3 {[%clk 0:03:01.1]} 1... Nf6 {[%clk 0:02:59.5]} 2. g3 {[%clk 0:03:00.5]}
2... g6 {[%clk 0:03:00.9]} 3. b3 {[%clk 0:03:01.2]} 3... Bg7 {[%clk 0:03:02.5]}
4. Bb2 {[%clk 0:03:02.6]} 4... O-O {[%clk 0:03:04.1]} 5. Bg2 {[%clk 0:03:03.8]}
5... d6 {[%clk 0:03:05.6]} 6. d4 {[%clk 0:03:04.2]} 6... Nbd7 {[%clk 0:03:03.4]}
7. O-O {[%clk 0:03:04.4]} 7... Re8 {[%clk 0:03:05]} 8. a4 {[%clk 0:03:00.9]}
8... e5 {[%clk 0:03:05.4]} 9. dxe5 {[%clk 0:02:50.1]} 9... Ng4 {[%clk
0:03:04.7]} 10. Nc3 {[%clk 0:02:24.7]} 10... dxe5 {[%clk 0:03:04.7]} 11. e4
{[%clk 0:02:18.7]} 11... c6 {[%clk 0:03:03.3]} 12. a5 {[%clk 0:02:11.3]} 12...
Nc5 {[%clk 0:03:00.7]} 13. Qe2 {[%clk 0:02:07.4]} 13... Ne6 {[%clk 0:03:00.8]}
14. Rfd1 {[%clk 0:01:59.8]} 14... Qc7 {[%clk 0:03:00.9]} 15. a6 {[%clk 0:01:58]}
15... b5 {[%clk 0:02:57.4]} 16. h3 {[%clk 0:01:48.8]} 16... Nh6 {[%clk
0:02:46.7]} 17. Nb1 {[%clk 0:01:39.1]} 17... c5 {[%clk 0:02:39.7]} 18. Qxb5
{[%clk 0:01:32.6]} 18... Rd8 {[%clk 0:02:30.4]} 19. Rxd8+ {[%clk 0:01:24.5]}
19... Qxd8 {[%clk 0:02:32.3]} 20. Nc3 {[%clk 0:01:23.1]} 20... Nd4 {[%clk
0:02:28.5]} 21. Qxc5 {[%clk 0:01:13.2]} 21... Bxh3 {[%clk 0:02:24.4]} 22. Nxd4
{[%clk 0:01:08.8]} 22... Bxg2 {[%clk 0:02:24.7]} 23. Nc6 {[%clk 0:01:05.4]}
23... Qc7 {[%clk 0:02:22.1]} 24. Ne7+ {[%clk 0:01:05.5]} 1-0

[Event "*** Titled Tuesday Blitz AM"]
[Site "Chess.com"]
[Date "2020.01.07"]
[Round "5"]
[White "DishonorOnYourCow"]
[Black "KRASAVCHIK2002"]
[Result "1-0"]
[WhiteElo "2245"]
[BlackElo "2467"]
[TimeControl "180+2"]
[EndTime "10:02:51 PST"]
[Termination "DishonorOnYourCow won by resignation"]

1. d4 {[%clk 0:03:01.9]} 1... Nf6 {[%clk 0:02:59.7]} 2. c4 {[%clk 0:03:00.1]}
2... e6 {[%clk 0:02:57.6]} 3. Nf3 {[%clk 0:02:58.5]} 3... b6 {[%clk 0:02:58.6]}
4. g3 {[%clk 0:02:58.3]} 4... Bb7 {[%clk 0:02:57.7]} 5. Bg2 {[%clk 0:02:57.6]}
5... Be7 {[%clk 0:02:58.6]} 6. O-O {[%clk 0:02:57.1]} 6... O-O {[%clk
0:02:55.9]} 7. Nc3 {[%clk 0:02:56.1]} 7... Ne4 {[%clk 0:02:55.8]} 8. Qc2 {[%clk
0:02:47]} 8... Nxc3 {[%clk 0:02:56.5]} 9. Qxc3 {[%clk 0:02:46.8]} 9... f5 {[%clk
0:02:58.4]} 10. b3 {[%clk 0:02:25.8]} 10... Bf6 {[%clk 0:02:59.1]} 11. Bb2
{[%clk 0:02:24.3]} 11... d6 {[%clk 0:02:55.6]} 12. Rad1 {[%clk 0:02:15.6]} 12...
Qe7 {[%clk 0:02:53.9]} 13. Qc2 {[%clk 0:02:14.5]} 13... Nd7 {[%clk 0:02:55.8]}
14. d5 {[%clk 0:02:08.8]} 14... g6 {[%clk 0:02:53.4]} 15. dxe6 {[%clk
0:02:04.9]} 15... Qxe6 {[%clk 0:02:55.3]} 16. Nd4 {[%clk 0:01:57]} 1-0

[Event "*** Titled Tuesday Blitz AM"]
[Site "Chess.com"]
[Date "2020.01.07"]
[Round "5"]
[White "Komissarov_alex"]
[Black "MathiasWomacka"]
[Result "1-0"]
[WhiteElo "1758"]
[BlackElo "2332"]
[TimeControl "180+2"]
[EndTime "10:02:52 PST"]
[Termination "Komissarov_alex won by resignation"]

1. d4 {[%clk 0:03:01.9]} 1... Nf6 {[%clk 0:03:00.5]} 2. Nf3 {[%clk 0:03:00.6]}
2... e6 {[%clk 0:03:01.4]} 3. e3 {[%clk 0:03:01]} 3... c5 {[%clk 0:03:02.2]} 4.
c3 {[%clk 0:02:58.7]} 4... Nc6 {[%clk 0:02:59.4]} 5. Nbd2 {[%clk 0:02:57.8]}
5... d5 {[%clk 0:02:59.9]} 6. Bd3 {[%clk 0:02:57.9]} 6... Bd6 {[%clk 0:03:01]}
7. O-O {[%clk 0:02:56.2]} 7... O-O {[%clk 0:03:01.7]} 8. dxc5 {[%clk 0:02:51.3]}
8... Bxc5 {[%clk 0:03:02.4]} 9. b4 {[%clk 0:02:50.5]} 9... Bd6 {[%clk 0:02:57]}
10. Bb2 {[%clk 0:02:50.8]} 10... Qc7 {[%clk 0:02:54.2]} 11. b5 {[%clk
0:02:48.1]} 11... Ne5 {[%clk 0:02:52.3]} 12. Nxe5 {[%clk 0:02:46.5]} 12... Bxe5
{[%clk 0:02:53.1]} 13. f4 {[%clk 0:02:46.3]} 13... Bd6 {[%clk 0:02:45.4]} 14. c4
{[%clk 0:02:47.4]} 14... Qb6 {[%clk 0:02:36.2]} 15. Bd4 {[%clk 0:02:41.6]} 15...
Bc5 {[%clk 0:02:37.3]} 16. Bxf6 {[%clk 0:02:40]} 16... Bxe3+ {[%clk 0:02:37.7]}
17. Kh1 {[%clk 0:02:37.5]} 17... gxf6 {[%clk 0:02:39]} 18. Qh5 {[%clk
0:02:09.6]} 18... Rd8 {[%clk 0:02:12.2]} 19. Qh6 {[%clk 0:01:52]} 19... f5
{[%clk 0:02:11.9]} 20. Rf3 {[%clk 0:01:40]} 20... Qd4 {[%clk 0:02:05.2]} 21.
Qg5+ {[%clk 0:01:36.2]} 21... Kf8 {[%clk 0:02:04.5]} 22. Qxd8+ {[%clk
0:01:34.7]} 22... Kg7 {[%clk 0:02:05.7]} 23. Rg3+ {[%clk 0:01:30.5]} 1-0

[Event "*** Titled Tuesday Blitz AM"]
[Site "Chess.com"]
[Date "2020.01.07"]
[Round "5"]
[White "Gareth-Bale11"]
[Black "mohssenbinaddi"]
[Result "1-0"]
[WhiteElo "2718"]
[BlackElo "2213"]
[TimeControl "180+2"]
[EndTime "10:03:29 PST"]
[Termination "Gareth-Bale11 won by resignation"]

1. Nf3 {[%clk 0:03:01.9]} 1... d5 {[%clk 0:02:59.9]} 2. d4 {[%clk 0:03:02.3]}
2... Bg4 {[%clk 0:03:00.2]} 3. c4 {[%clk 0:03:00]} 3... Bxf3 {[%clk 0:03:00.8]}
4. gxf3 {[%clk 0:03:01.9]} 4... dxc4 {[%clk 0:03:01.3]} 5. Qa4+ {[%clk
0:03:02.2]} 5... Nc6 {[%clk 0:02:59.3]} 6. e3 {[%clk 0:03:02.5]} 6... Qd5 {[%clk
0:02:57.3]} 7. Nc3 {[%clk 0:02:55.9]} 7... Qxf3 {[%clk 0:02:56.1]} 8. Rg1 {[%clk
0:02:57.5]} 8... a6 {[%clk 0:02:41.2]} 9. Bg2 {[%clk 0:02:53.9]} 9... Qf6 {[%clk
0:02:39.3]} 10. Qxc4 {[%clk 0:02:54.3]} 10... O-O-O {[%clk 0:02:14.1]} 11. Bd2
{[%clk 0:02:51.1]} 11... e5 {[%clk 0:02:11.9]} 12. d5 {[%clk 0:02:50.1]} 12...
Nb4 {[%clk 0:02:02.1]} 13. Rc1 {[%clk 0:02:46.8]} 13... b5 {[%clk 0:01:50.2]}
14. Qe4 {[%clk 0:02:32.2]} 14... c6 {[%clk 0:01:33.1]} 15. a3 {[%clk 0:02:28.5]}
15... Nxd5 {[%clk 0:00:55.5]} 16. Nxd5 {[%clk 0:02:28.2]} 16... Qd6 {[%clk
0:00:56.2]} 17. Ba5 {[%clk 0:02:22.5]} 17... Kb7 {[%clk 0:00:44.3]} 18. Bxd8
{[%clk 0:02:22]} 18... Qxd8 {[%clk 0:00:42.4]} 19. Nb4 {[%clk 0:02:21]} 19...
Bxb4+ {[%clk 0:00:38.9]} 20. axb4 {[%clk 0:02:22.9]} 20... Ne7 {[%clk
0:00:39.3]} 21. Rxc6 {[%clk 0:02:23.4]} 21... f5 {[%clk 0:00:32.7]} 22. Rb6+
{[%clk 0:02:23]} 1-0

[Event "*** Titled Tuesday Blitz AM"]
[Site "Chess.com"]
[Date "2020.01.07"]
[Round "5"]
[White "MarcoRiehle"]
[Black "MishkaFighter"]
[Result "1-0"]
[WhiteElo "2634"]
[BlackElo "2431"]
[TimeControl "180+2"]
[EndTime "10:03:38 PST"]
[Termination "MarcoRiehle won by resignation"]

1. d4 {[%clk 0:03:01.7]} 1... g6 {[%clk 0:03:00.7]} 2. c4 {[%clk 0:02:55.7]}
2... Bg7 {[%clk 0:03:01.9]} 3. Nc3 {[%clk 0:02:55.8]} 3... d6 {[%clk 0:03:00.3]}
4. e4 {[%clk 0:02:56.9]} 4... Nf6 {[%clk 0:02:56.9]} 5. f3 {[%clk 0:02:55.7]}
5... O-O {[%clk 0:02:56.8]} 6. Nge2 {[%clk 0:02:52.6]} 6... Nc6 {[%clk
0:02:57.3]} 7. Be3 {[%clk 0:02:51.4]} 7... a6 {[%clk 0:02:57.6]} 8. Qd2 {[%clk
0:02:51]} 8... Rb8 {[%clk 0:02:58.9]} 9. Nc1 {[%clk 0:02:48.5]} 9... e5 {[%clk
0:02:59.8]} 10. d5 {[%clk 0:02:49.2]} 10... Nd4 {[%clk 0:03:01]} 11. N1e2 {[%clk
0:02:50.2]} 11... c5 {[%clk 0:02:53]} 12. dxc6 {[%clk 0:02:51.3]} 12... bxc6
{[%clk 0:02:54.9]} 13. Nxd4 {[%clk 0:02:52.2]} 13... exd4 {[%clk 0:02:56.8]} 14.
Bxd4 {[%clk 0:02:54.1]} 14... Re8 {[%clk 0:02:55.3]} 15. Be2 {[%clk 0:02:54.5]}
15... d5 {[%clk 0:02:41]} 16. cxd5 {[%clk 0:02:56.4]} 16... cxd5 {[%clk
0:02:42.5]} 17. e5 {[%clk 0:02:57.7]} 17... Nh5 {[%clk 0:02:43.2]} 18. f4 {[%clk
0:02:43.2]} 18... Qh4+ {[%clk 0:02:28.6]} 19. g3 {[%clk 0:02:41.6]} 19... Nxg3
{[%clk 0:01:56.6]} 20. Bf2 {[%clk 0:02:41.1]} 20... Nxe2 {[%clk 0:01:54.1]} 21.
Bxh4 {[%clk 0:02:38.9]} 21... Nxf4 {[%clk 0:01:55.5]} 22. O-O {[%clk 0:02:30.3]}
22... Nh3+ {[%clk 0:01:45.1]} 23. Kg2 {[%clk 0:02:31.1]} 23... Bxe5 {[%clk
0:01:47]} 24. Rae1 {[%clk 0:02:30.6]} 24... d4 {[%clk 0:01:37.7]} 25. Nd5 {[%clk
0:02:07.4]} 25... Bb7 {[%clk 0:01:25.2]} 26. Kxh3 {[%clk 0:02:03.8]} 26... Bxd5
{[%clk 0:01:24.9]} 27. Bg3 {[%clk 0:02:02.6]} 27... Be6+ {[%clk 0:01:15.3]} 28.
Kg2 {[%clk 0:01:59.6]} 28... Bd5+ {[%clk 0:01:14.7]} 29. Kg1 {[%clk 0:02:00.7]}
1-0

[Event "*** Titled Tuesday Blitz AM"]
[Site "Chess.com"]
[Date "2020.01.07"]
[Round "5"]
[White "Oleksandr_Bortnyk"]
[Black "TrimitziosP7"]
[Result "1-0"]
[WhiteElo "3001"]
[BlackElo "2712"]
[TimeControl "180+2"]
[EndTime "10:03:45 PST"]
[Termination "Oleksandr_Bortnyk won by resignation"]

1. e4 {[%clk 0:03:01.9]} 1... c6 {[%clk 0:02:57.9]} 2. c4 {[%clk 0:03:02.2]}
2... d5 {[%clk 0:02:48.2]} 3. cxd5 {[%clk 0:03:04.1]} 3... cxd5 {[%clk 0:02:49]}
4. exd5 {[%clk 0:03:06]} 4... Nf6 {[%clk 0:02:46.7]} 5. Qa4+ {[%clk 0:03:05.5]}
5... Nbd7 {[%clk 0:02:44.3]} 6. Nc3 {[%clk 0:03:05.9]} 6... g6 {[%clk
0:02:43.6]} 7. Bc4 {[%clk 0:03:07.4]} 7... Bg7 {[%clk 0:02:43.9]} 8. d3 {[%clk
0:03:08.8]} 8... O-O {[%clk 0:02:44.7]} 9. Nf3 {[%clk 0:03:10.4]} 9... Nb6
{[%clk 0:02:45.1]} 10. Qb3 {[%clk 0:03:11.7]} 10... Bg4 {[%clk 0:02:44]} 11. Ne5
{[%clk 0:03:13]} 11... Bf5 {[%clk 0:02:14.1]} 12. O-O {[%clk 0:03:13.9]} 12...
Nfd7 {[%clk 0:02:03.2]} 13. Nxd7 {[%clk 0:03:12.3]} 13... Qxd7 {[%clk
0:02:04.5]} 14. Re1 {[%clk 0:03:08.3]} 14... Rad8 {[%clk 0:01:58.7]} 15. Bg5
{[%clk 0:03:08]} 15... Bf6 {[%clk 0:01:55.8]} 16. Bxf6 {[%clk 0:03:09.1]} 16...
exf6 {[%clk 0:01:57.7]} 17. Ne4 {[%clk 0:03:08.9]} 17... Bxe4 {[%clk 0:01:53.5]}
18. dxe4 {[%clk 0:03:10]} 18... Qd6 {[%clk 0:01:50.5]} 19. Bb5 {[%clk
0:03:02.6]} 19... Rc8 {[%clk 0:01:50.2]} 20. a4 {[%clk 0:03:02.5]} 20... a6
{[%clk 0:01:49.6]} 21. Bd3 {[%clk 0:02:59.4]} 21... Rc7 {[%clk 0:01:48.4]} 22.
g3 {[%clk 0:02:58.3]} 22... Rfc8 {[%clk 0:01:48.8]} 23. Bf1 {[%clk 0:02:58.8]}
23... Nd7 {[%clk 0:01:49.3]} 24. Bh3 {[%clk 0:02:57.7]} 24... Nc5 {[%clk
0:01:48.1]} 25. Qa3 {[%clk 0:02:57.3]} 25... Rd8 {[%clk 0:01:46.8]} 26. Rac1
{[%clk 0:02:57.6]} 26... a5 {[%clk 0:01:44.7]} 27. b4 {[%clk 0:02:53]} 27... Na6
{[%clk 0:01:30.2]} 28. Rxc7 {[%clk 0:02:49]} 28... axb4 {[%clk 0:01:29.7]} 29.
Qe3 {[%clk 0:02:40.2]} 29... Qxc7 {[%clk 0:01:27]} 30. Rc1 {[%clk 0:02:40.7]}
30... Qd6 {[%clk 0:01:24.8]} 31. f4 {[%clk 0:02:40.8]} 31... Re8 {[%clk
0:01:24.4]} 32. Qd4 {[%clk 0:02:40.3]} 32... Kg7 {[%clk 0:01:21.4]} 33. Bf1
{[%clk 0:02:40.4]} 33... Re7 {[%clk 0:01:21]} 34. Bxa6 {[%clk 0:02:39.6]} 34...
bxa6 {[%clk 0:01:21.3]} 35. Rc6 {[%clk 0:02:40.4]} 35... Qd8 {[%clk 0:01:16.1]}
36. Qxf6+ {[%clk 0:02:39.4]} 36... Kg8 {[%clk 0:01:16.8]} 37. d6 {[%clk
0:02:40.8]} 37... Re8 {[%clk 0:01:14.9]} 38. Qxd8 {[%clk 0:02:40.3]} 38... Rxd8
{[%clk 0:01:16.8]} 39. Rxa6 {[%clk 0:02:28]} 39... b3 {[%clk 0:01:17]} 40. Rb6
{[%clk 0:02:28.8]} 40... Ra8 {[%clk 0:01:15]} 41. Rxb3 {[%clk 0:02:28.8]} 1-0